Cogmind - Beta 17 @@@ ROGUE MODE // 2026.07.21 @ 03:44:22 Player: Smol John Result: Destroyed by Y-45 Defender with Heavy Assault Rifle Performance ------------- Evolutions (1) 500 Regions Visited (4) 800 Robots Destroyed (33) 165 Value Destroyed (1028) 1028 Prototype IDs (0) 0 Alien Tech Used (0) 0 Bonus (0) 0 TOTAL SCORE: 2493 Bonus ------- None Cogmind --------- Core Integrity 0/400 Matter 168/300 Energy 100/100 System Corruption 0% Temperature Cool (0) Movement Core (200) Ox3 Location -9/Storage Parts ------- > --- POWER (1) -------- (None) > --- PROPULSION (3) --- (None) > --- UTILITY (3) ------ Medium Storage Unit Power Shielding > --- WEAPON (2) ------- (None) > --- INVENTORY (10) --- Ion Engine Light Ion Engine VSS Leg VSS Leg VSS Leg VSS Leg Signal Interpreter Peak State ------------ > --- POWER ------------ Improved Ion Engine > --- PROPULSION ------- VSS Leg VSS Leg VSS Leg > --- UTILITY ---------- Medium Storage Unit Power Shielding Light Armor Plating > --- WEAPON ----------- Medium Laser Minigun > --- INVENTORY -------- Ion Engine Light Ion Engine Light Treads Light Treads VSS Leg Wheel Compact Wheel Signal Interpreter Grenade Launcher Grenade Launcher [Rating: 19] Favorites ----------- Power Improved Ion Engine Engine Improved Ion Engine Propulsion Aluminum Leg Treads Light Treads Leg Aluminum Leg Wheel Compact Wheel Utility Power Shielding Storage Medium Storage Unit Protection Power Shielding Weapon Medium Laser Energy Gun Medium Laser Ballistic Gun Minigun Launcher Grenade Launcher Build | -11 -10 -10 -9 -9 ------- Run | Yrd Mat Min Mat Sto Slots Evolved 2 | . . . 2 . Power . | . . . . . Propulsion 1 | . . . 1 . Utility 1 | . . . 1 . Weapon . | . . . . . Parts Attached 24 | 7 2 1 11 3 Power 2 | 1 . . 1 . Engine 2 | 1 . . 1 . Core . | . . . . . Reactor . | . . . . . Propulsion 12 | 2 . . 8 2 Treads 2 | . . . . 2 Leg 8 | . . . 8 . Wheel 2 | 2 . . . . Hover . | . . . . . Flight . | . . . . . Utility 4 | 1 2 . 1 . Device . | . . . . . Storage 2 | 1 1 . . . Processor . | . . . . . Hackware . | . . . . . Protection 2 | . 1 . 1 . Artifact . | . . . . . Weapon 6 | 3 . 1 1 1 Energy Gun 3 | 3 . . . . Energy Cannon . | . . . . . Ballistic Gun 1 | . . . 1 . Ballistic Cannon . | . . . . . Launcher 2 | . . 1 . 1 Special Weapon . | . . . . . Impact Weapon . | . . . . . Slashing Weapon . | . . . . . Piercing Weapon . | . . . . . Special Melee Weapon . | . . . . . Unidentified Prototypes . | . . . . . Parts Lost 12 | . . . 2 10 Power 1 | . . . . 1 Propulsion 5 | . . . 1 4 Utility 1 | . . . . 1 Weapon 5 | . . . 1 4 Highest Loss Streak 6 | . . . 1 6 To Critical Strikes . | . . . . . Average Backups 8 | 2 7 8 9 8 Power 1 | . 1 1 1 2 Propulsion 4 | 2 4 5 4 4 Utility . | . . . . 1 Weapon 1 | . 1 2 2 . Tool/Special . | . . . . . Unused Backups 3 | . . . . 3 Power 1 | . . . . 1 Propulsion 1 | . . . . 1 Utility 1 | . . . . 1 Weapon . | . . . . . Tool/Special . | . . . . . Average Slot Usage (%) 88 | . 98 100 89 73 Engine 11 | . 14 14 11 8 Treads 1 | . . . . 10 Leg 19 | . . . 30 14 Wheel 8 | . 28 28 1 4 Storage 11 | . 14 14 11 11 Protection 13 | . 12 14 13 14 Energy Gun 18 | . 28 28 20 2 Ballistic Gun 1 | . . . . 6 Peak Build Rating 19 | 6 7 7 19 19 Average Rating 9 | 4 6 7 10 12 On Entrance 7 | . 6 7 7 19 Avg Prop Armor Cover (%) 17 | . . . . 17 Naked Turns . | . . . . . Heaviest Build 26 | 14 20 20 26 26 Greatest Support 40 | 26 26 26 36 40 Greatest Overweight (x) 3 | . . . . 3 Average Overweight (x) . | . . . . . Largest Inventory Capacity 10 | 8 10 10 10 10 Average Capacity 9 | 7 8 10 10 10 Most Carried 10 | 6 8 8 10 10 Average Carried 8 | 3 7 8 9 8 Final Capacity 10 | 8 10 10 10 10 Final Carried 10 | 6 8 8 10 7 Class Distribution -------------------- 100% | Mutant Dominant Class ---------------- Mutant | -10/Materials Mutant | -10/Mines Mutant | -9/Materials Mutant | -9/Storage Resources | -11 -10 -10 -9 -9 ----------- Run | Yrd Mat Min Mat Sto Matter Collected 633 | 198 92 30 280 33 Remotely . | . . . . . Salvage Created 1066 | . 108 32 657 269 Parts 56 | . 6 6 28 16 Haulers Intercepted . | . . . . . Recyclers Shooed 3 | . . . 3 . Parts Field Recycled . | . . . . . Retrieved Matter . | . . . . . Parts Self-Destructed . | . . . . . Prevented . | . . . . . Parts Restored . | . . . . . Kills | -11 -10 -10 -9 -9 ------- Run | Yrd Mat Min Mat Sto Combat Hostiles Destroyed 27 | . 2 3 15 7 Guns 15 | . 2 1 9 3 AOE 12 | . . 2 6 4 Classes Destroyed 7 | . 2 1 3 1 Builder 2 | . . . 1 1 Recycler 1 | . . . 1 . Mechanic 1 | . . . . 1 Operator 2 | . 1 . 1 . Swarmer 3 | . . 3 . . Grunt 19 | . 2 . 14 3 Sentry 5 | . . . 1 4 Best Kill Streak 8 | . 2 3 6 8 Combat Bots Only 6 | . 2 3 4 6 Max Kills in Single Turn 3 | . 1 2 3 2 Gunslinging . | . . . . . Exploded 2 | . . 2 2 2 Melee . | . . . . . Uniques/NPCs Destroyed . | . . . . . Combat | -11 -10 -10 -9 -9 -------- Run | Yrd Mat Min Mat Sto Hostile Shots Fired 216 | . 8 10 68 130 Missed 68 | . 4 2 21 41 Hits 148 | . 4 8 47 89 Projectile 148 | . 4 8 47 89 AOE 1 | . . . . 1 Critical Strikes 5 | . . . 1 4 Damage Taken 2047 | . 44 74 676 1253 Core 459 | . 23 26 129 281 Absorbed by Shields . | . . . . . Redirected to Shielding 31 | . . 2 10 19 Core Remaining (%) 90 | 100 . 80 . . Volleys Fired 98 | . 9 3 57 29 Largest 2 | . 2 2 2 2 Hottest 90 | . 90 80 90 75 Shots Fired 173 | . 18 6 112 37 Gun 154 | . 18 5 100 31 Cannon . | . . . . . Launcher 19 | . . 1 12 6 Special . | . . . . . Kinetic 29 | . . . . 29 Thermal 94 | . 9 2 81 2 Explosive 19 | . . 1 12 6 Electromagnetic 31 | . 9 3 19 . Robot Hit Streak 11 | . 6 2 11 8 Robot Miss Streak 7 | . 3 2 7 3 Penetration Max . | . . . . . Secondary Targets 2 | . 1 . 1 . Max Gunslinging Chain 1 | . 1 . 1 . Shots Hit Robots 89 | . 10 2 54 23 Core Hits 68 | . 5 3 41 19 Critical Kills . | . . . . . Critical Parts Destroyed . | . . . . . Critical Strikes 6 | . 1 . 4 1 Burn 6 | . 1 . 4 1 Melee Attacks . | . . . . . Impact . | . . . . . Slashing . | . . . . . Piercing . | . . . . . Sneak Attacks . | . . . . . Combat Hostiles . | . . . . . Follow-up Attacks . | . . . . . Damage Inflicted 2305 | . 133 88 1342 742 Guns 1162 | . 133 21 658 350 Cannons . | . . . . . Explosions 1131 | . . 67 684 380 Melee . | . . . . . Ramming 12 | . . . . 12 Kinetic 337 | . . . . 337 Thermal 686 | . 76 11 586 13 Explosive 1085 | . . 67 638 380 Electromagnetic 185 | . 57 10 118 . Impact . | . . . . . Slashing . | . . . . . Piercing . | . . . . . Highest Corruption . | . . . . . Average Corruption . | . . . . . Corruption Purged . | . . . . . Corruption Blocked . | . . . . . Overload Shots . | . . . . . Overflow Damage . | . . . . . Projectiles . | . . . . . Explosions . | . . . . . Melee . | . . . . . Knockbacks . | . . . . . Impact . | . . . . . Kinetic . | . . . . . Secondary . | . . . . . Self-Inflicted Damage 115 | . . . 111 4 Shots 5 | . . . 5 . Rammed 5 | . . . . 5 Targets Rammed 5 | . . . . 5 Kicked . | . . . . . Crushed . | . . . . . Highest Temperature 257 | . 102 36 257 88 Average Temperature 62 | . 39 16 76 27 Received Heat Transfer 873 | . 24 . 312 537 Siege Activations . | . . . . . Martial Activations . | . . . . . Shielding Activations . | . . . . . Robots Disrupted . | . . . . . Combat Hostiles . | . . . . . Robots Corrupted . | . . . . . Combat Hostiles . | . . . . . Parts Fried . | . . . . . Impact Corruptions . | . . . . . Robots Melted . | . . . . . Combat Hostiles . | . . . . . Parts Melted 4 | . 2 . 2 . Heat Transferred 2194 | . 296 25 1762 111 Parts Sabotaged . | . . . . . Parts Stolen . | . . . . . Parts Stripped . | . . . . . Power Chain Reactions 1 | . . . 1 . Alert | -11 -10 -10 -9 -9 ------- Run | Yrd Mat Min Mat Sto Maximum Alert Level 1 | . . . 1 1 Low Security (%) 67 | 100 100 100 55 47 Level 1 32 | . . . 44 52 Level 2 . | . . . . . Level 3 . | . . . . . Level 4 . | . . . . . Level 5 . | . . . . . High Security . | . . . . . Max Security . | . . . . . Peak Influence 300 | . 40 71 300 266 Initial 116 | . . . 27 116 Average 108 | . 11 24 134 196 Influence Increases 914 | . 63 81 510 260 Destroy 0b10 Robot/C 540 | . 40 60 300 140 Destroy 0b10 Robot/NC 30 | . 5 . 15 10 Destroy Leader 130 | . 10 10 70 40 Successful Hack 12 | . 8 . 4 . Disable Machine 60 | . . . 45 15 Destroy Structure 112 | . . 11 76 25 Lose Combat Pursuer 30 | . . . . 30 Influence Decreases 718 | . 63 10 305 340 Entered New Map 204 | . . . 44 160 Time Decay 394 | . 63 10 241 80 Lost Part 120 | . . . 20 100 Squads Dispatched 9 | . 2 . 5 2 Investigation 5 | . 1 . 3 1 Extermination . | . . . . . Reinforcement 4 | . 1 . 2 1 Assault . | . . . . . Garrison . | . . . . . Intercept . | . . . . . Searches Triggered . | . . . . . Construction Impeded 1 | . . . 1 . Haulers Reinforced . | . . . . . Active Scanning Responses . | . . . . . Cargo Convoy Interrupts . | . . . . . Stealth | -11 -10 -10 -9 -9 --------- Run | Yrd Mat Min Mat Sto Distress Signals . | . . . . . Communications Jammed . | . . . . . Distress Signals . | . . . . . Times Spotted 50 | . 4 3 23 20 Peak Tracking Total 11 | . 2 3 6 11 Tactical Retreats 1 | . . . . 1 Traps | -11 -10 -10 -9 -9 ------- Run | Yrd Mat Min Mat Sto Traps Triggered 1 | . . . . 1 Indirectly . | . . . . . Trap Hack Attempts . | . . . . . Triggered . | . . . . . Disarmed . | . . . . . Reprogrammed . | . . . . . Reused . | . . . . . Traps Extracted . | . . . . . Installed . | . . . . . Triggered . | . . . . . Machines | -11 -10 -10 -9 -9 ---------- Run | Yrd Mat Min Mat Sto Machines Disabled 4 | . . . 3 1 Max in Single Turn 2 | . . . 2 1 Machines Repaired . | . . . . . Machines Dismantled . | . . . . . Machines Sabotaged . | . . . . . Overloaded Fab Kills . | . . . . . Hacking | -11 -10 -10 -9 -9 --------- Run | Yrd Mat Min Mat Sto Machines Accessed 7 | . 2 . 5 . Terminals 5 | . 1 . 4 . Fabricators . | . . . . . Repair Stations . | . . . . . Recycling Units 1 | . 1 . . . Scanalyzers 1 | . . . 1 . Garrison Access . | . . . . . Total Hacks 21 | . 6 . 15 . Successful 8 | . 3 . 5 . Failed 12 | . 3 . 9 . Catastrophic 2 | . 1 . 1 . Database Lockouts 1 | . . . 1 . Manual 16 | . 5 . 11 . Terminals 16 | . 5 . 11 . Fabricators . | . . . . . Repair Stations . | . . . . . Recycling Units 1 | . 1 . . . Scanalyzers 4 | . . . 4 . Garrison Access . | . . . . . Terminal Hacks 1 | . 1 . . . Branch Access Points 1 | . 1 . . . Fabricator Hacks . | . . . . . Repair Station Hacks . | . . . . . Recycling Unit Hacks 1 | . 1 . . . Report Inventory 1 | . 1 . . . Scanalyzer 2 | . . . 2 . Retrieve Study 2 | . . . 2 . Garrison Access Hacks . | . . . . . Unauthorized Hacks 4 | . 1 . 3 . Terminals 4 | . 1 . 3 . Botnet 3 | . 1 . 2 . Skim 1 | . . . 1 . Fabricators . | . . . . . Repair Stations . | . . . . . Recycling Units . | . . . . . Scanalyzers . | . . . . . Garrison Access . | . . . . . Data Cores Recovered . | . . . . . Used . | . . . . . Hacking Detections 6 | . 1 . 5 . Full Trace Events 3 | . 1 . 2 . Feedback Events . | . . . . . Feedback Blocked . | . . . . . Robot Schematics Acquired . | . . . . . Robots Built . | . . . . . Authchips . | . . . . . Time . | . . . . . Total Robot Build Rating . | . . . . . Part Schematics Acquired . | . . . . . Parts Built . | . . . . . Authchips . | . . . . . Time . | . . . . . Total Part Build Rating . | . . . . . Part Studies Acquired 2 | . . . 2 . Parts Repaired . | . . . . . Time . | . . . . . Parts Recycled . | . . . . . Recycled Matter . | . . . . . Retrieved Matter . | . . . . . Retrieved Components . | . . . . . Parts Scanalyzed . | . . . . . Part Schematics Acquired . | . . . . . Parts Damaged . | . . . . . Bothacking | -11 -10 -10 -9 -9 ------------ Run | Yrd Mat Min Mat Sto Used RIF Installer . | . . . . . Robots Hacked . | . . . . . Non-combat . | . . . . . Combat . | . . . . . Robot Hacks Applied . | . . . . . Relay Couplers Released . | . . . . . Fabnet Peak Effective % . | . . . . . Robots Rewired . | . . . . . Allies Hacked . | . . . . . Hacks Repelled . | . . . . . Allies | -11 -10 -10 -9 -9 -------- Run | Yrd Mat Min Mat Sto Total Allies . | . . . . . Largest Group . | . . . . . Highest-Rated Group . | . . . . . Highest-Rated Ally . | . . . . . Total Orders . | . . . . . Ally Attacks . | . . . . . Total Damage . | . . . . . Kills . | . . . . . Allies Corrupted . | . . . . . Allies Melted . | . . . . . Intel | -11 -10 -10 -9 -9 ------- Run | Yrd Mat Min Mat Sto Active Infowar (turns) . | . . . . . Robot Analysis Total . | . . . . . Derelict Logs Recovered 1 | . . 1 . . Drone Launches . | . . . . . Drone Recoveries . | . . . . . Exploration | -11 -10 -10 -9 -9 ------------- Run | Yrd Mat Min Mat Sto Turns Passed 1039 | 63 187 52 564 173 Spaces Moved 718 | 54 165 45 363 91 Core 9 | 5 . . . 4 Treads 18 | . . . . 18 Legs 359 | . . . 335 24 Wheels 332 | 49 165 45 28 45 Hover . | . . . . . Flight . | . . . . . Fastest Speed 50 | 50 90 90 90 90 Average Speed 97 | 87 90 90 100 111 Slowest Speed 200 | 100 90 90 105 200 Overloaded Moves . | . . . . . Propulsion Burnouts . | . . . . . Robots Hopped . | . . . . . Potential Cave-ins . | . . . . . Cave-ins Triggered . | . . . . . Exploration Rate (%) 23 | 4 29 18 35 29 Regions Visited 4 Branch Regions 2 Pre-discovered Areas . | . . . . . Known Exits Taken 1 | . 1 . . . Unknown Exits Taken 3 | 1 . 1 1 . Scrap Searched 1 | . . 1 . . Spaces Dug . | . . . . . Terrain Destroyed 119 | . . 11 86 22 Melee . | . . . . . Projectile . | . . . . . AOE 119 | . . 11 86 22 Terrain Rammed . | . . . . . Walls Destroyed . | . . . . . Machines Disabled . | . . . . . Actions | -11 -10 -10 -9 -9 --------- Run | Yrd Mat Min Mat Sto Total 879 | 66 185 49 448 131 Wait 11 | . 7 . 4 . Move 714 | 53 164 44 362 91 Hop . | . . . . . Pick Up 11 | 6 2 . 3 . Fast Attach 10 | 6 1 . 3 . Attach 6 | . . . 3 3 Detach . | . . . . . Swap 17 | 1 1 2 10 3 Drop 7 | . 1 . 6 . Fire 98 | . 9 3 57 29 Melee . | . . . . . Ram 5 | . . . . 5 Kick . | . . . . . Crush . | . . . . . Escape Stasis . | . . . . . Rewire . | . . . . . Trap . | . . . . . Miscellaneous . | . . . . . Route ------- -11/Scrapyard -10/Materials (discovered 2 exits: *Min x2) -10/Mines -9/Materials (discovered 2 exits: [*Mat] / [*Sto]) -9/Storage History --------- Turn | Location | Event 22 | -11/Scrapyard | Discovered new exit (range 15) 64 | -11/Scrapyard | Entered Materials 82 | -10/Materials | Identified exit to Mines 251 | -10/Materials | Entered Mines 281 | -10/Mines | Discovered new exit (range 8) 297 | -10/Mines | Learned Materials terminal intel 303 | -10/Mines | Entered Materials 303 | -9/Materials | Evolved 2 slots: Propulsion x1, Utility x1 304 | -9/Materials | Loaded intel: 12 terminal locations 308 | -9/Materials | Build established: Mutant 332 | -9/Materials | Central database locked down 611 | -9/Materials | Discovered new exit (range 16) 742 | -9/Materials | Discovered new exit (range 6) 867 | -9/Materials | Entered Storage 932 | -9/Storage | Core integrity fell below 50% 959 | -9/Storage | Lost 4 parts (1u3w) 1004 | -9/Storage | Core integrity fell below 20% 1040 | -9/Storage | Destroyed by Y-45 Defender with Heavy Assault Rifle Last Messages --------------- 00960_ K-01 Serf collects debris. 00969_ The unstable cave ceiling collapses. 00970_ K-01 Serf collects debris. 00974_ Lgt. Treads destroyed. 00974_ Minigun destroyed. 00977_ K-01 Serf collects debris. 00979_ The unstable cave ceiling collapses. 00987_ Slammed into O-16 Technician. 00990_ K-01 Serf collects debris. 00990_ G-34 Mercenary destroyed. 00994_ K-01 Serf collects debris. 00997_ K-01 Serf destroyed. 00999_ Slammed into G-34 Mercenary. 01004_ The unstable cave ceiling collapses. 01004_ Imp. Ion Engine destroyed. 01007_ Wheel destroyed. 01011_ K-01 Serf cleans the Component Storage. 01012_ Slammed into K-01 Serf. 01033_ Com. Wheel destroyed. 01039_ Lgt. Treads destroyed. Map ----- +----------------------------------------------------+ | ?# """ # #????????????????? | | ?# """ ##+ #????????????????? | | ?# """ # # #????????????????? | | ?# #" " #????????????????? | | ??#######T # ## #????????????????? | | ????????#" # #?######????????????????? | | ????????# !!# #???????????????????????? | | ???????# !!# #???????????????????????? | | ???????## # #???????????????????????? | | ????????# # #???????????????????????? | | ????????###### #???????????????????????? | | ?????#########/#???????????????????????? | | ?????# #???????????????????????? | | ?????# """ """ #???????????????????????? | | ?????# """ """ #????##+###?????????????? | | ?????# """ """ #?? +?????????????? | | ?????# """ """ # ????????????????? | | ?????# """ """ + #????????????????????? | | ?????# # ??????????????????????? | | ?????# #???????????????????????? | | ?????######+####??#????????????????????? | | ??????????# #???? #????????????????????? | | ??????????# #???? #????????????????????? | | ????????### ##?? #????????????????????? | | ???"""" # Y ### #????????????????????? | | ???"""" /Y @ #????????????????????? | | ???"""" # +????????????????????? | | ????????# !######????????????????????? | | ????????## ##?????????????????????????? | | ?????????# #??????????????????????????? | | ?????????# #??????????????????????????? | | ?????????# #??????????????????????????? | | ?????????# ???????????????????????????? | | ?????????# ???????????????????????????? | | ?????????# ???????????????????????????? | | ?????????"""???????????????????????????? | | ???????????????????????????????????????? | | ???????????????????????????????????????? | | ???????????????????????????????????????? | | ???????????????????????????????????????? | | ???????????????????????????????????????? | | ???????????????????????????????????????? | | ???????????????????????????????????????? | | | | | | | | | | | | | | | +----------------------------------------------------+ Best States ------------- Heat Dissipation 28 Energy Generation 12 Energy Capacity 265 Matter Stores 300 Matter Capacity 300 Sight Range 16 Terrain Scan Density 10 Armor Coverage 150 Power Shielding 33 Evasion (%) 57 Recoil Reduction 2 Item Schematics ----------------- None Robot Schematics ------------------ None Fabricated ------------ Nothing Repaired ---------- Nothing Studied --------- Aluminum Leg | -9/Materials | Hacked Grenade Launcher | -9/Materials | Hacked Alien Tech Used ----------------- None Achievements -------------- None Challenges ------------ None Game ------ Seed ChromionMassSpoofer Manual? 0 Play Time 00:13:53 Cumulative 44.0 hours Start 2026.07.21 @ 03:29:56 End 2026.07.21 @ 03:44:22 Sessions 1 Manual Loads 0 Difficulty Rogue Special Mode None Game No. 67 Rogue 67 Adventurer 0 Explorer 0 Win Type - Total 1 Types 1/0/0/0/0/0/0/0/0/0 Lore% 30 Gallery% 33 Achievement% 26 Wizard Run 0 Options --------- Layout 1 ASCII 0 Keyboard 0 Movement Mouse Keybinds 0 Fullscreen 1 Font 20/SmallcapsGlow Map View 50x35 Zoom Use 0% Tactical HUD 1 Map Filters NONE Filters NONE Steam 1 RUN: 12585551-d1cc-4d28-84c9-309c3e04c526